bitfinex/quotes_BTCUSD_20240629
["timestamp","ask_amount","ask_price","bid_price","bid_amount"]
[1719680813741,15.93604347,61000.0,60999.0,3.73343351]
[1719680814576,15.79334347,61000.0,60999.0,3.73343351]
[1719680815297,15.79334347,61000.0,60999.0,3.36967322]
[1719680815497,15.79334347,61000.0,60999.0,2.96667322]
[1719680816806,15.79334347,61000.0,60999.0,2.96667321]
[1719680818921,15.79334347,61000.0,60999.0,2.83044616]
[1719680819254,15.79334347,61000.0,60999.0,2.96667126]
[1719680819417,15.79334347,61000.0,60999.0,2.89289488]
[1719680819578,15.79334347,61000.0,60999.0,3.12240588]
[1719680819785,15.79334347,61000.0,60999.0,2.89289488]
[1719680820003,15.79334347,61000.0,60999.0,2.75666978]
[1719680820212,15.79334347,61000.0,60999.0,2.89289488]
[1719680821014,15.79334347,61000.0,60999.0,3.12240588]
[1719680821459,15.79334347,61000.0,60999.0,3.52540588]
[1719680822280,15.79334347,61000.0,60999.0,3.59918276]
[1719680822703,15.79334347,61000.0,60999.0,3.59918273]
[1719680823116,15.79334347,61000.0,60999.0,3.5991844]
[1719680824596,15.79334347,61000.0,60999.0,3.59918661]
[1719680825664,15.79334347,61000.0,60999.0,3.38918078]
[1719680825871,15.79334347,61000.0,60999.0,3.96294493]
[1719680828125,15.79334347,61000.0,60999.0,3.88916216]
[1719680828907,15.79334347,61000.0,60999.0,3.88915507]
[1719680829540,15.79334347,61000.0,60999.0,3.98754056]
[1719680832054,15.79334347,61000.0,60999.0,3.987556]
[1719680832671,15.62894347,61000.0,60999.0,4.282056]
[1719680832967,15.62894347,61000.0,60999.0,3.37765517]
[1719680833371,15.62894347,61000.0,60999.0,3.60716617]
[1719680835248,15.62894347,61000.0,60999.0,3.47091071]
[1719680835456,15.62894347,61000.0,60999.0,3.60712033]
[1719680835672,15.62894347,61000.0,60999.0,3.10719178]
[1719680835882,15.62894347,61000.0,60999.0,3.60712034]
[1719680838413,15.62894347,61000.0,60999.0,3.60711915]
[1719680839178,15.62894347,61000.0,60999.0,4.01011915]
[1719680839603,15.62894347,61000.0,60999.0,4.41311915]
[1719680841556,15.62894347,61000.0,60999.0,3.91319178]
[1719680841824,15.62894347,61000.0,60999.0,4.41311915]
[1719680842074,15.62894347,61000.0,60999.0,3.91319178]
[1719680842319,15.62894347,61000.0,60999.0,4.41311915]
[1719680844926,15.62894347,61000.0,60999.0,4.41311875]
[1719680847712,15.62894347,61000.0,60999.0,4.71712975]
[1719680847867,15.62894347,61000.0,60999.0,4.62462384]
[1719680848222,15.62894347,61000.0,60999.0,4.96501846]
[1719680848606,15.62894347,61000.0,60999.0,4.96502025]
[1719680848788,15.61494347,61000.0,60999.0,4.96502025]
[1719680849603,15.62894347,61000.0,60999.0,4.96502025]
[1719680850238,15.62894347,61000.0,60999.0,5.66502025]
[1719680851021,15.62894347,61000.0,60999.0,5.32450301]
[1719680851196,15.62894347,61000.0,60999.0,5.66497754]
[1719680854269,15.62894347,61000.0,60999.0,4.5878943]
[1719680854476,15.62894347,61000.0,60999.0,5.66496951]
[1719680855857,15.62894347,61000.0,60999.0,5.59046951]
[1719680856054,15.62894347,61000.0,60999.0,6.47096951]
[1719680856662,15.36783951,61000.0,60999.0,6.47096951]
[1719680857529,15.36783951,61000.0,60999.0,5.25770449]
[1719680857698,15.36783951,61000.0,60999.0,6.4709734]
[1719680857859,15.36783951,61000.0,60999.0,5.25770449]
[1719680858066,15.36783951,61000.0,60999.0,6.47097438]
[1719680860514,15.36783951,61000.0,60999.0,5.77097438]
[1719680860719,15.36783951,61000.0,60999.0,5.26187325]
[1719680862556,15.36783951,61000.0,60999.0,5.40926476]
[1719680863564,15.36783951,61000.0,60999.0,6.10926476]
[1719680863977,15.36783951,61000.0,60999.0,5.96187428]
[1719680864177,15.36783951,61000.0,60999.0,6.10927102]
[1719680864392,15.36783951,61000.0,60999.0,5.9184246]
[1719680864582,15.36783951,61000.0,60999.0,5.40927102]
[1719680866858,15.36783951,61000.0,60999.0,5.03236328]
[1719680867072,15.36783951,61000.0,60999.0,3.98769178]
[1719680867250,15.36783951,61000.0,60999.0,4.71158265]
[1719680867450,15.36783951,61000.0,60999.0,4.82389109]
[1719680867656,15.36783951,61000.0,60999.0,5.41158623]
[1719680868056,15.36783951,61000.0,60999.0,4.71158623]
[1719680868843,15.36783951,61000.0,60999.0,5.05208417]
[1719680869042,15.36783951,61000.0,60999.0,5.26189041]
[1719680869263,15.36783951,61000.0,60999.0,5.40930398]
[1719680870166,15.36783951,61000.0,60999.0,5.91846946]
[1719680870384,15.36783951,61000.0,60999.0,5.40931141]
[1719680870984,15.36783951,61000.0,60999.0,5.77103474]
[1719680871219,15.36783951,61000.0,60999.0,6.47103474]
[1719680873282,15.36783951,61000.0,60999.0,6.47101642]
[1719680876624,15.36783951,61000.0,60999.0,6.47100926]
[1719680879055,15.36783951,61000.0,60999.0,6.13052476]
[1719680879274,15.36783951,61000.0,60999.0,6.47100871]
[1719680879720,15.36783951,61000.0,60999.0,5.25770072]
[1719680879879,15.36783951,61000.0,60999.0,6.47100708]
[1719680881218,15.36783951,61000.0,60999.0,6.39650708]
[1719680881427,15.36783951,61000.0,60999.0,6.34120708]
[1719680881643,15.36783951,61000.0,60999.0,5.53520708]
[1719680882246,15.36783951,61000.0,60999.0,4.66239515]
[1719680882452,15.36783951,61000.0,60999.0,5.14103365]
[1719680882656,15.65993951,61000.0,60999.0,4.74574109]
[1719680882864,15.65993951,61000.0,60999.0,3.98957684]
[1719680883075,15.65993951,61000.0,60999.0,3.28957684]
[1719680883274,15.65993951,61000.0,60999.0,3.45307684]
[1719680883507,15.65993951,61000.0,60999.0,4.83197354]
[1719680884103,15.65993951,61000.0,60999.0,4.85497354]
[1719680885351,15.65993951,61000.0,60999.0,4.85501938]
[1719680885984,15.65993951,61000.0,60999.0,4.85501817]
[1719680887012,15.65993951,61000.0,60999.0,7.05715996]
[1719680888465,15.64593951,61000.0,60999.0,6.55723027]
[1719680888639,15.64593951,61000.0,60999.0,7.05717178]
[1719680889224,15.65993951,61000.0,60999.0,7.05717178]
[1719680889682,15.64593951,61000.0,60999.0,7.05717178]
[1719680890090,15.65993951,61000.0,60999.0,7.05717178]
[1719680891544,15.65993951,61000.0,60999.0,6.55723027]
[1719680891734,15.65993951,61000.0,60999.0,7.05717186]
[1719680893440,15.65993951,61000.0,60999.0,7.18012765]
[1719680894257,15.65993951,61000.0,60999.0,6.24467186]
[1719680894466,15.65993951,61000.0,60999.0,4.73871976]
[1719680894677,15.65993951,61000.0,60999.0,4.60250659]
[1719680894886,15.65993951,61000.0,60999.0,4.66496106]
[1719680895084,15.64593951,61000.0,60999.0,4.66496106]
[1719680895313,15.65993951,61000.0,60999.0,4.66496106]
[1719680896082,15.64593951,61000.0,60999.0,4.66496106]
[1719680896347,15.65993951,61000.0,60999.0,4.66496106]
[1719680896482,15.65993951,61000.0,60999.0,4.71412716]
[1719680897370,15.65993951,61000.0,60999.0,5.52012716]
[1719680897575,15.65993951,61000.0,60999.0,2.76857044]
[1719680897797,15.67983951,61000.0,60999.0,2.65844863]
[1719680898002,15.65993951,61000.0,60999.0,2.14366189]
[1719680898207,15.73443951,61000.0,60999.0,2.22366189]
[1719680898414,15.73443951,61000.0,60999.0,2.20066189]
[1719680898539,15.73443951,61000.0,60999.0,2.211293]
[1719680898949,15.72043951,61000.0,60999.0,2.211293]
[1719680899148,15.72043951,61000.0,60999.0,2.30066189]
[1719680899356,15.73443951,61000.0,60999.0,2.311293]
[1719680899799,15.72043951,61000.0,60999.0,2.311293]
[1719680900208,15.73443951,61000.0,60999.0,2.334293]
[1719680900902,15.72043951,61000.0,60999.0,2.334293]
[1719680901103,15.73443951,61000.0,60999.0,2.334293]
[1719680901426,15.70643951,61000.0,60999.0,2.334293]
[1719680902014,15.72043951,61000.0,60999.0,2.334293]
[1719680902345,15.73443951,61000.0,60999.0,2.32366189]
[1719680902561,15.72043951,61000.0,60999.0,2.33427745]
[1719680902961,15.73443951,61000.0,60999.0,2.33427745]
[1719680905043,16.35433951,61000.0,60999.0,1.99415089]
[1719680905245,15.93443951,61000.0,60999.0,1.99415089]
[1719680905449,16.35433951,61000.0,60999.0,1.99415089]
[1719680905994,16.34033951,61000.0,60999.0,1.99415089]
[1719680906266,16.35033951,61000.0,60999.0,1.74163989]
[1719680906500,16.35033951,61000.0,60999.0,1.84163989]
[1719680906856,16.36433951,61000.0,60999.0,1.84163989]
[1719680908013,16.35033951,61000.0,60999.0,1.84163989]
[1719680908238,16.33633951,61000.0,60999.0,1.86463989]
[1719680908482,16.36433951,61000.0,60999.0,1.86463989]
[1719680908662,16.35033951,61000.0,60999.0,1.86463989]
[1719680908855,16.34733951,61000.0,60999.0,1.86463989]
[1719680909238,16.35733951,61000.0,60999.0,1.86463989]
[1719680910269,16.35733951,61000.0,60999.0,1.84163989]
[1719680917938,15.92743951,61000.0,60999.0,1.84163989]
[1719680918110,16.35733951,61000.0,60999.0,1.61212889]
[1719680919492,16.35733951,61000.0,60999.0,1.49737389]
[1719680920172,16.35733951,61000.0,60999.0,1.16937389]
[1719680921924,16.09599951,61000.0,60999.0,0.90703491]
[1719680922122,16.01036151,61000.0,60999.0,0.90703491]
[1719680922359,16.46593171,61000.0,60999.0,0.90703491]
[1719680923129,16.45593171,61000.0,60999.0,0.90703491]
[1719680923351,16.44593171,61000.0,60999.0,0.90703491]
[1719680923573,16.44693171,61000.0,60999.0,1.00703491]
[1719680924029,16.21742371,61000.0,60999.0,1.00703491]
[1719680924581,15.78752371,61000.0,60999.0,1.00703491]
[1719680925522,16.21742371,61000.0,60999.0,1.00703491]
[1719680925895,15.78752371,61000.0,60999.0,1.00703491]
[1719680926506,16.21742371,61000.0,60999.0,1.00703491]
[1719680926729,16.44693171,61000.0,60999.0,1.00703491]
[1719680926928,16.46692865,61000.0,60999.0,1.00703491]
[1719680934628,16.03702865,61000.0,60999.0,1.00703491]
[1719680935275,16.46692865,61000.0,60999.0,1.00703491]
[1719680947247,16.19725167,61000.0,60999.0,1.00703491]
[1719680948318,16.42675967,61000.0,60999.0,1.00703491]
[1719680948515,15.99685967,61000.0,60999.0,1.00703491]
[1719680948737,16.42675967,61000.0,60999.0,1.00703491]
[1719680954065,16.35225967,61000.0,60999.0,1.00703491]
[1719680954274,16.42675967,61000.0,60999.0,1.00703491]
[1719680956861,16.19725167,61000.0,60999.0,1.00703491]
[1719680963532,16.07155167,61000.0,60999.0,1.00703491]
[1719680965811,15.84204367,61000.0,60999.0,1.00703491]
[1719680967331,15.76754367,61000.0,60999.0,1.00703491]
[1719680967584,15.72728967,61000.0,60999.0,1.00703491]
[1719680968139,15.84204367,61000.0,60999.0,1.00703491]
[1719680968387,15.67564367,61000.0,60999.0,1.00703491]
[1719680970018,15.56088967,61000.0,60999.0,1.00703491]
[1719680973678,15.56088967,61000.0,60999.0,1.46590091]
[1719680973880,15.56088967,61000.0,60999.0,1.60400091]
[1719680976581,15.13098967,61000.0,60999.0,1.48940091]
[1719680976788,15.13098967,61000.0,60999.0,1.35130091]
[1719680978655,15.56088967,61000.0,60999.0,1.35130091]
[1719680982360,15.67968967,61000.0,60999.0,1.12178991]
[1719680985211,15.67968967,61000.0,60999.0,1.00703491]
[1719680989566,15.40898099,61000.0,60999.0,1.00703491]
[1719680990404,14.97908099,61000.0,60999.0,1.00703491]
[1719680991201,15.40898099,61000.0,60999.0,1.00703491]
[1719680991813,15.11557173,61000.0,60999.0,1.00703491]
[1719680992015,15.11457173,61000.0,60999.0,1.00703491]
[1719680993181,15.22832573,61000.0,60999.0,1.00703491]
[1719680993668,15.23032573,61000.0,60999.0,1.00703491]
[1719680995492,15.22932573,61000.0,60999.0,1.00703491]
[1719680995750,15.22832573,61000.0,60999.0,1.00703491]
[1719680996033,15.22932573,61000.0,60999.0,1.00703491]
[1719680997026,15.23032573,61000.0,60999.0,1.00703491]
[1719680998432,15.36292573,61000.0,60999.0,1.00703491]
[1719681000427,15.59243373,61000.0,60999.0,1.00703491]
[1719681000654,15.59243373,61000.0,60999.0,1.41019493]
[1719681000808,15.59243373,61000.0,60999.0,4.1686877]
[1719681001006,15.59243373,61000.0,60999.0,4.17951184]
[1719681001680,15.59143373,61000.0,60999.0,4.17951184]
[1719681002447,15.59017423,61000.0,60999.0,4.17951184]
[1719681008144,15.47137423,61000.0,60999.0,4.17951184]
[1719681010465,15.80258223,61000.0,60999.0,4.17951184]
[1719681011229,15.80158223,61000.0,60999.0,4.17951184]
[1719681012025,15.80258223,61000.0,60999.0,4.17951184]
[1719681012609,15.37268223,61000.0,60999.0,4.17951184]
[1719681014801,15.80258223,61000.0,60999.0,4.17951184]
[1719681014987,15.72808223,61000.0,60999.0,4.17951184]
[1719681015186,15.80258223,61000.0,60999.0,4.17951184]
[1719681016780,15.80258223,61000.0,60999.0,4.17971158]
[1719681020079,16.03209023,61000.0,60999.0,4.07971158]
[1719681020285,16.03209023,61000.0,60999.0,1.32121881]
[1719681020511,16.03209023,61000.0,60999.0,0.90703491]
[1719681020859,16.76722394,61000.0,60999.0,0.483]
[1719681021063,16.56683194,61000.0,60999.0,0.70978217]
[1719681021383,1.617444,60995.0,60994.0,0.1319459]
[1719681021589,1.6431142,60995.0,60994.0,0.14834096]
[1719681021816,2.2730142,60995.0,60994.0,0.14834096]
[1719681022593,2.2740142,60995.0,60994.0,0.14834096]
[1719681024001,2.2750142,60995.0,60994.0,0.14834096]
[1719681024204,2.2750142,60995.0,60992.0,0.000924]
[1719681024415,1.277769,60993.0,60992.0,0.080924]
[1719681024622,1.5448392,60993.0,60992.0,0.09639506]
[1719681025170,1.9471732,60993.0,60992.0,0.09639506]
[1719681025377,2.73940691,60993.0,60992.0,0.09639506]
[1719681025582,1.623374,60985.0,60983.0,0.2]
[1719681025795,1.623374,60985.0,60984.0,0.59181994]
[1719681025796,2.1748442,60985.0,60984.0,0.59181994]
[1719681026003,2.1748442,60985.0,60984.0,0.61444789]
[1719681026207,2.1748442,60985.0,60984.0,0.68010689]
[1719681026412,2.3476442,60985.0,60984.0,0.68010689]
[1719681026617,2.3476442,60985.0,60984.0,0.61444789]
[1719681026821,2.321974,60985.0,60984.0,0.61444789]
[1719681027233,2.335974,60985.0,60984.0,0.61444789]
[1719681027618,2.061474,60985.0,60984.0,0.61444789]
[1719681027742,2.335974,60985.0,60984.0,0.61444789]
[1719681028346,2.349974,60985.0,60984.0,0.61444789]
[1719681029092,2.349874,60985.0,60984.0,0.61444789]
[1719681030920,2.349874,60985.0,60984.0,0.59805283]
[1719681031219,2.349774,60985.0,60984.0,0.59805283]
[1719681031417,2.075174,60985.0,60984.0,0.59805283]
[1719681031642,2.046174,60985.0,60984.0,0.59805283]
[1719681031802,1.81661,60985.0,60984.0,0.59805283]
[1719681032000,1.24861,60985.0,60984.0,0.59805283]
[1719681032428,1.67851,60985.0,60984.0,0.59805283]
[1719681033300,1.67841,60985.0,60984.0,0.59805283]
[1719681033682,1.24851,60985.0,60984.0,0.59805283]
[1719681033854,1.67841,60985.0,60984.0,0.59805283]
[1719681034262,1.50561,60985.0,60984.0,0.59805283]
[1719681035643,1.43111,60985.0,60984.0,0.59805283]
[1719681036096,1.50561,60985.0,60984.0,0.59805283]
[1719681037032,0.971982,60985.0,60984.0,0.83565283]
[1719681037223,1.046482,60985.0,60984.0,0.83565283]
[1719681037378,1.275946,60985.0,60984.0,0.83565283]
[1719681038389,1.275946,60985.0,60984.0,0.95043683]
[1719681038390,0.66790468,60985.0,60984.0,0.95043683]
[1719681038590,0.66790468,60985.0,60984.0,1.05043683]
[1719681038789,0.66780468,60985.0,60984.0,1.05043683]
[1719681038988,0.66770468,60985.0,60984.0,1.05043683]
[1719681040528,0.66770468,60985.0,60984.0,1.28000483]
[1719681042338,0.24780468,60985.0,60984.0,1.28000483]
[1719681042744,0.67770468,60985.0,60984.0,1.28000483]
[1719681043230,0.24780468,60985.0,60984.0,1.28010483]
[1719681043665,0.67770468,60985.0,60984.0,1.28010483]
[1719681045028,0.66770468,60985.0,60984.0,1.28010483]
[1719681045349,0.67770468,60985.0,60984.0,1.28010483]
[1719681048590,0.66770468,60985.0,60984.0,1.28010483]
[1719681049211,0.35722332,60985.0,60984.0,1.28010483]
[1719681049931,0.36722332,60985.0,60984.0,1.28010483]
[1719681050175,0.3868771,60985.0,60984.0,1.28010483]
[1719681050482,0.3768771,60985.0,60984.0,1.28010483]
[1719681051721,0.3868771,60985.0,60984.0,1.28010483]
[1719681051926,0.3868771,60985.0,60984.0,1.28102883]
[1719681053297,0.3768771,60985.0,60984.0,1.28102883]
[1719681053499,0.3768771,60985.0,60984.0,1.51059683]
[1719681060423,0.3768771,60985.0,60984.0,1.90250381]
[1719681061985,0.13732332,60985.0,60984.0,1.89730381]
[1719681062175,0.15722332,60985.0,60984.0,1.89730381]
[1719681063351,0.13732332,60985.0,60984.0,1.89730381]
[1719681064434,0.15722332,60985.0,60984.0,1.89730381]
[1719681065291,0.44172332,60998.0,60997.0,0.78]
[1719681065530,0.44172332,60998.0,60997.0,0.79639506]
[1719681065531,0.0745,60998.0,60997.0,0.79639506]
[1719681065879,0.44172332,60998.0,60997.0,0.79639506]
[1719681066605,0.44272332,60998.0,60997.0,0.80739506]
[1719681067014,0.44372332,60998.0,60997.0,0.82039506]
[1719681068455,0.44372332,60998.0,60997.0,0.804]
[1719681069546,0.46376742,60998.0,60997.0,0.8041]
[1719681071727,0.26021978,60998.0,60997.0,0.8041]
[1719681072534,0.26021978,60998.0,60997.0,0.869743]
[1719681073450,0.37497678,60998.0,60997.0,0.869743]
[1719681081339,0.60449178,60998.0,60997.0,0.869743]
[1719681084532,0.60533178,60998.0,60997.0,0.869743]
[1719681090509,0.37581678,60998.0,60997.0,0.869743]
[1719681091441,0.25105978,60998.0,60997.0,0.869743]
[1719681091612,0.37581678,60998.0,60997.0,0.869743]
[1719681091817,0.17655978,60998.0,60997.0,0.869743]
[1719681094314,0.16655978,60998.0,60997.0,0.869743]
[1719681094513,0.16655978,60998.0,60997.0,1.345721]
[1719681094719,0.16655978,60998.0,60997.0,1.456121]
[1719681095463,0.16655978,60998.0,60997.0,1.68564]
[1719681096391,0.16655978,60998.0,60997.0,1.84797898]
[1719681099346,0.0228841,60998.0,60997.0,1.84797898]
[1719681099751,0.16655978,60998.0,60997.0,1.84797898]
[1719681101035,0.0228841,60998.0,60997.0,1.84797898]
[1719681105940,0.16655978,60998.0,60997.0,1.84797898]
[1719681106263,0.0228841,60998.0,60997.0,1.84797898]
[1719681106414,0.16655978,60998.0,60997.0,1.84797898]
[1719681107298,0.0228841,60998.0,60997.0,1.84797898]
[1719681107498,0.17655978,60998.0,60997.0,1.84797898]
[1719681108356,0.16655978,60998.0,60997.0,1.84797898]
[1719681108860,0.17655978,60998.0,60997.0,1.84797898]
[1719681109403,0.18655978,60998.0,60997.0,1.50805998]
[1719681109614,0.18655978,60998.0,60997.0,1.37635998]
[1719681114475,0.17655978,60998.0,60997.0,1.37635998]
[1719681114686,0.18655978,60998.0,60997.0,1.37635998]
[1719681115287,0.18655978,60998.0,60997.0,1.14684098]
[1719681116732,0.18655978,60998.0,60997.0,1.14776498]
[1719681123487,0.67343178,60998.0,60997.0,0.870667]
[1719681123890,0.90294678,60998.0,60997.0,0.870667]
[1719681124513,1.00944678,60998.0,60997.0,0.870667]
[1719681129332,1.00944678,60998.0,60997.0,1.197667]
[1719681129708,1.00944678,60998.0,60997.0,1.20698599]
[1719681134015,0.98940268,60998.0,60997.0,1.20698599]
[1719681138868,0.825727,60998.0,60997.0,1.20698599]
[1719681139082,0.822887,60998.0,60997.0,1.20698599]
[1719681139355,0.98656268,60998.0,60997.0,1.20698599]
[1719681141251,0.822887,60998.0,60997.0,1.20698599]
[1719681143821,0.98656268,60998.0,60997.0,1.20698599]
[1719681145550,0.98656268,60998.0,60997.0,1.197667]
[1719681145904,0.98656268,60998.0,60997.0,1.20698599]
[1719681151178,1.41607768,60998.0,60997.0,1.20698599]
[1719681151347,1.41691768,60998.0,60997.0,1.20698599]
[1719681151752,1.41691768,60998.0,60997.0,1.197667]
[1719681153432,1.41691768,60998.0,60997.0,0.997667]
[1719681155490,1.60831768,60998.0,60997.0,0.432024]
[1719681155688,1.60831768,60998.0,60997.0,0.105024]
[1719681155890,1.63758081,60998.0,60997.0,0.105024]
[1719681160159,1.65787063,60998.0,60997.0,0.105024]
[1719681166340,1.6370468,60998.0,60997.0,0.105024]
[1719681167016,1.4370468,60998.0,60997.0,0.105024]
[1719681167247,1.1965468,60998.0,60997.0,0.105024]
[1719681170980,1.34387561,60998.0,60997.0,0.105024]
[1719681171391,1.343863,60998.0,60997.0,0.105024]
[1719681172259,1.543863,60998.0,60997.0,0.105024]
[1719681173562,1.3965468,60998.0,60997.0,0.105024]
[1719681174588,1.543863,60998.0,60997.0,0.105024]
[1719681175149,1.3965468,60998.0,60997.0,0.105024]
[1719681175936,1.543863,60998.0,60997.0,0.105024]
[1719681177083,1.3965468,60998.0,60997.0,0.105024]
[1719681177318,1.54388306,60998.0,60997.0,0.105024]
[1719681180115,1.3965468,60998.0,60997.0,0.105024]
[1719681180468,1.1965468,60998.0,60997.0,0.105024]
[1719681180599,1.2710468,60998.0,60997.0,0.105024]
[1719681182098,1.1965468,60998.0,60997.0,0.105024]
[1719681182317,1.2710468,60998.0,60997.0,0.105024]
[1719681183943,0.7375168,60998.0,60997.0,0.105024]
[1719681184151,0.41038682,60998.0,60997.0,0.105024]
[1719681184354,0.7290775,60998.0,60997.0,0.246324]
[1719681184500,0.8035775,60998.0,60997.0,0.246324]
[1719681184884,0.63990182,60998.0,60997.0,0.246324]
[1719681185513,0.8035775,60998.0,60997.0,0.246324]
[1719681190615,0.4995625,60998.0,60997.0,0.246324]
[1719681190814,0.4995625,60998.0,60997.0,0.353824]
[1719681191018,0.5740625,60998.0,60997.0,0.353824]
[1719681193897,0.5740625,60998.0,60997.0,0.246324]
[1719681194499,0.8035775,60998.0,60997.0,0.246324]
[1719681194700,0.8035775,60998.0,60997.0,0.105024]
[1719681198877,0.7290775,60998.0,60997.0,0.105024]
[1719681199076,0.8035775,60998.0,60997.0,0.105024]
[1719681203258,0.5740625,60998.0,60997.0,0.354324]
[1719681203962,0.41038682,60998.0,60997.0,0.354324]
[1719681204162,0.5740625,60998.0,60997.0,0.354324]
[1719681205390,0.41038682,60998.0,60997.0,0.354324]
[1719681205605,0.5740625,60998.0,60997.0,0.354324]
[1719681206147,0.63990182,60998.0,60997.0,0.246824]
[1719681209802,0.63990182,60998.0,60997.0,0.105024]
[1719681210011,0.8035775,60998.0,60997.0,0.105024]
[1719681215992,0.63990182,60998.0,60997.0,0.105024]
[1719681216196,0.8035775,60998.0,60997.0,0.105024]
[1719681217128,1.0330925,60998.0,60997.0,0.105024]
[1719681222858,1.0330925,60998.0,60997.0,0.250324]
[1719681223043,1.0330925,60998.0,60997.0,0.359824]
[1719681224230,0.8035775,60998.0,60997.0,0.359824]
[1719681226322,0.1748055,60998.0,60997.0,0.559824]
[1719681226524,0.2493055,60998.0,60997.0,0.559824]
[1719681226723,0.2393055,60998.0,60997.0,0.559824]
[1719681227592,0.2493055,60998.0,60997.0,0.559824]
[1719681229756,0.2493055,60998.0,60997.0,0.674583]
[1719681230253,0.2393055,60998.0,60997.0,0.674583]
[1719681230773,0.2493055,60998.0,60997.0,0.674583]
[1719681230971,0.2393055,60998.0,60997.0,0.674583]
[1719681231808,0.2393055,60998.0,60997.0,0.68475946]
[1719681232255,0.2393055,60998.0,60997.0,0.91427846]
[1719681232514,0.2493055,60998.0,60997.0,0.91427846]
[1719681233042,0.2393055,60998.0,60997.0,0.91427846]
[1719681233245,0.2493055,60998.0,60997.0,0.91427846]
[1719681233918,0.2493055,60998.0,60997.0,0.904102]
[1719681235242,0.4493055,60998.0,60997.0,0.904102]
[1719681235480,0.2493055,60998.0,60997.0,0.904102]
[1719681235683,14.42859721,61000.0,60999.0,0.114755]
[1719681235996,14.50309721,61000.0,60999.0,0.13115006]
[1719681236917,14.50409721,61000.0,60999.0,0.14215006]
[1719681238353,14.30409721,61000.0,60999.0,0.15615006]
[1719681238522,14.30509721,61000.0,60999.0,0.15615006]
[1719681238701,14.30509721,61000.0,60999.0,0.139755]
[1719681238902,14.32445107,61000.0,60999.0,0.139755]
[1719681239103,14.32445107,61000.0,60999.0,0.278955]
[1719681239354,14.32445107,61000.0,60999.0,0.384755]
[1719681240124,14.31445107,61000.0,60999.0,0.384755]
[1719681240353,14.23995107,61000.0,60999.0,0.614266]
[1719681240559,14.31445107,61000.0,60999.0,0.63066106]
[1719681240995,14.31445107,61000.0,60999.0,0.614266]
[1719681241447,14.23995107,61000.0,60999.0,0.943777]
[1719681241648,14.23995107,61000.0,60999.0,2.49312698]
[1719681241649,14.22059721,61000.0,60999.0,2.49312698]
[1719681242051,14.22059721,61000.0,60999.0,2.48312698]
[1719681242524,14.21959721,61000.0,60999.0,2.48212698]
[1719681242746,14.21859721,61000.0,60999.0,2.46812698]
[1719681242983,14.22259721,61000.0,60999.0,2.46812698]
[1719681243611,14.23659721,61000.0,60999.0,2.46912698]
[1719681244284,14.23559721,61000.0,60999.0,2.46912698]
[1719681244484,14.23859721,61000.0,60999.0,2.47012698]
[1719681246936,14.23859721,61000.0,60999.0,3.855787]
[1719681247485,14.23859721,61000.0,60999.0,3.845787]
[1719681253684,14.23859721,61000.0,60999.0,3.85502262]
[1719681254630,14.23859721,61000.0,60999.0,3.52802262]
[1719681259839,14.23859721,61000.0,60999.0,3.69152262]
[1719681260045,14.23859721,61000.0,60999.0,3.85502262]
[1719681266943,14.23859721,61000.0,60999.0,3.86502262]
[1719681267640,14.23859721,61000.0,60999.0,3.85502262]
[1719681268128,14.23859721,61000.0,60999.0,3.86502262]
[1719681268553,14.23859721,61000.0,60999.0,3.85502262]
[1719681268692,14.23859721,61000.0,60999.0,4.19203362]
[1719681268872,14.23859721,61000.0,60999.0,2.6428736]
[1719681270191,14.23859721,61000.0,60999.0,2.6328736]
[1719681270604,14.23859721,61000.0,60999.0,2.6428736]
[1719681273422,14.23859721,61000.0,60999.0,5.31952639]
[1719681273609,14.23859721,61000.0,60999.0,2.6428736]
[1719681279004,14.23859721,61000.0,60999.0,6.12593577]
[1719681279415,14.23859721,61000.0,60999.0,6.35544677]
[1719681280444,14.23259721,61000.0,60999.0,6.35444677]
[1719681280734,14.22159721,61000.0,60999.0,6.35444677]
[1719681280973,14.22259721,61000.0,60999.0,6.35544677]
[1719681281085,13.89273655,61000.0,60999.0,6.35444677]
[1719681281295,13.89573655,61000.0,60999.0,6.35544677]
[1719681286527,13.89573655,61000.0,60999.0,6.12593577]
[1719681299741,13.89573655,61000.0,60999.0,6.12593577]
[1719681299959,13.89573655,61000.0,60999.0,5.80643577]
[1719681300162,13.89573655,61000.0,60999.0,2.3233736]
[1719681300537,14.02673655,61000.0,60999.0,2.3233736]
[1719681300923,13.89573655,61000.0,60999.0,2.31413798]
[1719681301900,13.89573655,61000.0,60999.0,2.30413798]
[1719681302691,13.89573655,61000.0,60999.0,2.07462698]
[1719681302825,13.89573655,61000.0,60999.0,2.08462698]
[1719681303022,13.89573655,61000.0,60999.0,2.09398302]
[1719681305373,13.89573655,61000.0,60999.0,2.49714304]
[1719681305576,13.89573655,61000.0,60999.0,5.57704519]
[1719681307406,13.89573655,61000.0,60999.0,5.56704519]
[1719681314769,13.89573655,61000.0,60999.0,5.57704519]
[1719681315170,13.89573655,61000.0,60999.0,5.56704519]
[1719681315383,13.89273655,61000.0,60999.0,5.56604519]
[1719681315556,13.90673655,61000.0,60999.0,5.56704519]
[1719681315922,14.15513655,61000.0,60999.0,5.31453419]
[1719681316125,14.15513655,61000.0,60999.0,4.16703419]
[1719681316327,14.15413655,61000.0,60999.0,3.04712649]
[1719681316757,14.16713655,61000.0,60999.0,3.27763749]
[1719681317676,14.16713655,61000.0,60999.0,3.27856149]
[1719681321458,14.16713655,61000.0,60999.0,4.41145819]
[1719681322108,14.05503655,61000.0,60999.0,4.42145819]
[1719681322483,13.91873655,61000.0,60999.0,4.42145819]
[1719681323014,13.91873655,61000.0,60999.0,4.41145819]
[1719681324473,13.91873655,61000.0,60999.0,4.64096919]
[1719681326463,13.91873655,61000.0,60999.0,4.41145819]
[1719681331425,13.66374886,61000.0,60999.0,4.41145819]
[1719681334386,13.66374886,61000.0,60999.0,4.64096919]
[1719681336849,13.66374886,61000.0,60999.0,4.41145819]
[1719681337398,13.66374886,61000.0,60999.0,4.64096919]
[1719681337849,13.66374886,61000.0,60999.0,4.41145819]
[1719681339747,13.66374886,61000.0,60999.0,4.64096919]
[1719681340727,13.66374886,61000.0,60999.0,4.41145819]
[1719681341544,13.66374886,61000.0,60999.0,4.64096919]
[1719681341837,13.66374886,61000.0,60999.0,4.41145819]
[1719681350174,13.64974886,61000.0,60999.0,4.41045819]
[1719681350598,13.65074886,61000.0,60999.0,4.40945819]
[1719681351814,13.66474886,61000.0,60999.0,4.40945819]
[1719681353319,13.79894886,61000.0,60999.0,4.40945819]
[1719681356591,13.66474886,61000.0,60999.0,4.40945819]
[1719681357160,13.66474886,61000.0,60999.0,4.64896919]
[1719681357360,13.66474886,61000.0,60999.0,4.41945819]
[1719681358666,13.66474886,61000.0,60999.0,4.64896919]
[1719681360171,13.66474886,61000.0,60999.0,4.80406919]
[1719681360370,13.66474886,61000.0,60999.0,1.43170702]
[1719681360668,13.66474886,61000.0,60999.0,1.43235098]
[1719681361599,13.66474886,61000.0,60999.0,1.42235098]